bitfinex-derivatives/quotes_ETHF0:USTF0_20260213
["timestamp","ask_amount","ask_price","bid_price","bid_amount"]
[1770994379871,2.98267287,1993.9,1992.4,0.25111]
[1770994379872,15.64872689,1993.9,1992.4,0.25111]
[1770994380075,15.64872689,1993.9,1992.5,15.5662426]
[1770994380477,15.64872689,1993.9,1992.5,15.5714428]
[1770994380880,0.00507016,1994.0,1992.5,15.5714428]
[1770994381070,14.20836455,1993.9,1992.7,15.64428259]
[1770994381277,14.20836455,1993.9,1992.8,15.64428259]
[1770994381474,0.00507016,1994.0,1993.0,15.64428259]
[1770994381676,14.20836455,1994.8,1993.2,15.64428259]
[1770994381983,14.20836455,1994.6,1993.2,15.64428259]
[1770994382180,3.23346287,1995.0,1993.2,15.64428259]
[1770994382379,14.475,1995.1,1993.8,15.64428259]
[1770994382574,14.21328014,1995.1,1993.8,15.64428259]
[1770994382774,14.20836455,1994.9,1993.8,15.64428259]
[1770994382974,14.20836455,1994.9,1993.3,15.64428259]
[1770994383681,14.20836455,1994.7,1993.3,15.64428259]
[1770994384178,14.20836455,1994.5,1992.8,15.64428259]
[1770994384383,14.20836455,1994.3,1992.8,15.64428259]
[1770994384578,14.20836455,1994.3,1992.9,0.25105]
[1770994384783,28.68836455,1994.6,1993.2,15.64428259]
[1770994384978,14.20836455,1994.5,1993.2,15.64428259]
[1770994385184,14.48,1994.6,1993.2,15.64428259]
[1770994385679,14.20836455,1994.5,1993.2,15.64428259]
[1770994386084,14.20836455,1994.9,1993.2,15.64428259]
[1770994386481,14.20836455,1994.9,1993.4,15.64428259]
[1770994386683,14.20836455,1994.7,1993.4,15.64428259]
[1770994386878,0.00491559,1995.1,1993.4,15.64428259]
[1770994387088,14.20836455,1995.0,1993.4,15.64428259]
[1770994387384,14.20836455,1995.0,1993.1,6.17527]
[1770994387385,14.20836455,1995.0,1993.6,15.64428259]
[1770994388082,14.20836455,1995.0,1993.8,15.64428259]
[1770994389087,14.48091559,1995.1,1993.8,15.64428259]
[1770994389277,14.20836455,1995.0,1993.8,15.64428259]
[1770994390385,14.48091559,1995.1,1993.8,15.64428259]
[1770994390985,28.68928014,1995.1,1993.8,15.64428259]
[1770994391178,14.21328014,1995.1,1993.8,15.64428259]
[1770994391382,0.00491559,1995.1,1994.0,15.64428259]
[1770994391582,0.00491559,1995.1,1994.0,15.64841517]
[1770994391779,14.20836455,1995.9,1994.6,15.64428259]
[1770994392185,14.20836455,1995.9,1994.7,0.25082]
[1770994392380,14.20836455,1996.6,1995.4,15.64428259]
[1770994392783,14.21269156,1996.6,1995.4,15.64970196]
[1770994392994,6.162,1997.5,1995.4,15.64970196]
[1770994392995,14.20836455,1997.5,1996.0,15.64428259]
[1770994393198,14.20836455,1998.1,1996.6,15.64428259]
[1770994393485,14.70836455,1998.0,1996.6,15.64428259]
[1770994393692,0.5,1998.0,1996.6,15.64428259]
[1770994394283,0.50586426,1998.0,1996.8,15.64428259]
[1770994394591,0.24812731,1998.4,1997.2,15.64428259]
[1770994394786,14.20836455,1999.4,1997.8,15.64428259]
[1770994395090,14.20836455,1999.4,1997.3,15.64428259]
[1770994395091,14.20836455,1999.0,1997.3,15.64428259]
[1770994395294,14.20836455,1998.4,1997.0,15.64428259]
[1770994395491,14.20836455,1998.2,1997.0,15.64428259]
[1770994395787,14.20836455,1998.2,1996.8,0.00483276]
[1770994395788,14.20836455,1998.0,1996.8,0.00483276]
[1770994395988,14.20836455,1998.0,1996.8,15.64911535]
[1770994396292,14.21406888,1998.4,1996.9,15.64428259]
[1770994396491,14.21406888,1998.4,1997.0,15.64428259]
[1770994396894,14.20836455,1998.1,1996.8,0.00483276]
[1770994397089,14.20836455,1997.7,1996.8,0.00483276]
[1770994397387,14.20836455,1997.7,1996.4,15.64428259]
[1770994397695,14.20836455,1997.7,1996.1,15.64428259]
[1770994398082,14.20836455,1997.5,1995.8,15.64428259]
[1770994398286,14.20836455,1997.5,1995.8,15.64880768]
[1770994398486,14.20836455,1997.3,1995.8,15.64880768]
[1770994399293,14.20836455,1997.9,1996.0,15.64428259]
[1770994399493,14.20836455,1997.7,1996.2,15.64428259]
[1770994400895,14.48,1998.0,1996.4,15.64428259]
[1770994400896,14.20836455,1998.0,1996.4,15.64428259]
[1770994401195,0.25606433,1998.4,1996.3,6.41602]
[1770994401196,14.21406888,1998.4,1996.8,15.64428259]
[1770994403286,14.21406888,1998.4,1997.0,15.64428259]
[1770994404996,14.20836455,1998.3,1997.0,15.64428259]
[1770994405192,14.20836455,1998.1,1996.7,15.64428259]
[1770994405402,14.20836455,1997.9,1995.9,15.64428259]
[1770994405692,0.25048,1997.4,1995.9,15.64428259]
[1770994405995,14.20836455,1997.3,1995.9,15.64428259]
[1770994406699,6.16143,1997.6,1995.8,0.00452509]
[1770994406700,14.20836455,1996.9,1995.8,0.00452509]
[1770994406900,14.20836455,1996.7,1995.8,0.00452509]
[1770994407198,14.21444295,1996.9,1995.8,15.64880768]
[1770994408199,0.0060784,1996.9,1995.8,15.64880768]
[1770994408399,0.0060784,1996.9,1995.9,15.64428259]
[1770994408601,0.0060784,1996.9,1996.1,15.64428259]
[1770994409096,14.20836455,1997.6,1996.3,15.64428259]
[1770994409298,14.20836455,1997.8,1996.3,15.64428259]
[1770994410102,14.21231401,1997.8,1996.3,15.64428259]
[1770994410794,15.06008051,1997.6,1996.0,15.42061058]
[1770994411299,15.06008051,1997.2,1996.0,15.42061058]
[1770994411901,15.06008051,1996.6,1995.8,0.00452509]
[1770994412099,15.06008051,1996.9,1995.8,15.42513567]
[1770994412707,15.06008051,1997.3,1995.8,15.42513567]
[1770994414099,15.06008051,1997.7,1995.9,15.67128058]
[1770994414603,15.06008051,1997.5,1995.9,15.67128058]
[1770994414797,15.06008051,1997.1,1995.8,15.42513567]
[1770994415297,15.06008051,1996.9,1995.8,0.00452509]
[1770994415503,15.06008051,1996.7,1995.8,0.00452509]
[1770994416704,0.25056,1996.8,1993.8,9.80217614]
[1770994416705,14.55544751,1996.1,1994.4,14.42941154]
[1770994417006,14.55544751,1995.9,1994.4,14.42941154]
[1770994417500,14.55544751,1995.7,1994.4,14.42941154]
[1770994418908,14.55544751,1995.5,1994.1,14.42941154]
[1770994419402,14.55544751,1995.1,1993.8,14.42941154]
[1770994421510,14.55544751,1995.4,1993.8,14.42941154]
[1770994422004,14.55544751,1995.6,1994.0,14.42941154]
[1770994422507,14.55544751,1995.6,1994.2,14.42941154]
[1770994422704,14.80619751,1995.3,1993.9,14.42941154]
[1770994422915,14.55544751,1995.2,1993.9,14.42941154]
[1770994423100,14.55544751,1994.9,1993.6,14.42941154]
[1770994423301,14.55544751,1994.4,1993.0,14.42941154]
[1770994423606,14.55544751,1994.4,1992.7,14.42941154]
[1770994423801,14.55544751,1994.4,1992.8,14.42941154]
[1770994424403,14.55544751,1994.2,1992.8,14.42941154]
[1770994424598,14.55544751,1994.0,1992.5,14.42941154]
[1770994425106,14.55544751,1993.6,1992.2,14.42941154]
[1770994425403,14.55544751,1993.6,1991.8,0.24812731]
[1770994425404,14.55544751,1992.9,1991.8,0.24812731]
[1770994425612,14.55544751,1992.9,1991.5,14.42941154]
[1770994425806,14.55544751,1993.2,1991.5,14.42941154]
[1770994427002,14.404,1993.4,1991.6,14.42941154]
[1770994427207,14.55544751,1993.3,1991.6,14.42941154]
[1770994429208,14.55544751,1993.1,1991.6,14.42941154]
[1770994429403,14.55544751,1992.6,1991.0,14.42941154]
[1770994430106,14.55544751,1992.4,1990.7,14.42941154]
[1770994430417,14.55544751,1992.3,1990.7,14.42941154]
[1770994431111,6.1784,1992.1,1990.7,14.42941154]
[1770994431409,14.55544751,1992.0,1990.7,14.42941154]
[1770994432216,14.55544751,1992.3,1990.9,14.42941154]
[1770994432611,14.55544751,1992.6,1990.9,14.42941154]
[1770994433012,14.55544751,1992.4,1990.9,14.42941154]
[1770994436821,14.55544751,1992.4,1990.0,3.88551148]
[1770994436822,14.55544751,1992.0,1990.3,14.42941154]
[1770994437411,6.17903,1991.9,1990.3,14.42941154]
[1770994437617,14.55544751,1991.7,1990.3,14.42941154]
[1770994438322,14.55544751,1992.2,1990.3,14.42941154]
[1770994440019,14.55544751,1992.2,1990.4,14.68077154]
[1770994440319,14.55544751,1992.2,1990.7,14.42941154]
[1770994440519,14.55544751,1992.2,1990.6,14.42941154]
[1770994440720,14.78160062,1991.6,1990.2,13.81899397]
[1770994440923,14.78162062,1991.4,1989.7,13.81899397]
[1770994441620,14.53038062,1991.4,1989.9,13.81899397]
[1770994441921,14.53038062,1992.1,1990.1,13.81899397]
[1770994442124,14.53038062,1992.1,1990.7,13.81899397]
[1770994442319,14.53038062,1992.1,1990.6,0.25134]
[1770994442320,14.53038062,1992.7,1991.1,13.81899397]
[1770994442626,14.53038062,1992.7,1991.5,13.81899397]
[1770994442929,14.53038062,1992.3,1990.9,13.81899397]
[1770994443521,9.81035148,1992.8,1991.1,13.81899397]
[1770994443522,14.53038062,1992.8,1991.1,13.81899397]
[1770994444021,14.53038062,1992.8,1991.3,13.81899397]
[1770994444214,14.53038062,1992.6,1991.3,13.81899397]
[1770994444919,14.53038062,1992.4,1990.6,0.25133]
[1770994445226,14.53038062,1991.8,1990.7,13.81899397]
[1770994446724,14.53038062,1991.4,1990.4,13.81899397]
[1770994447026,3.88526148,1992.1,1990.4,13.81899397]
[1770994447215,14.53038062,1992.0,1990.6,13.81899397]
[1770994447524,14.53038062,1992.3,1990.8,13.81899397]
[1770994448121,14.53038062,1992.6,1991.0,13.81899397]
[1770994448322,14.53038062,1992.6,1991.4,13.81899397]
[1770994448727,14.53038062,1992.4,1991.4,13.81899397]
[1770994449727,14.53038062,1992.4,1990.9,13.81899397]
[1770994450026,14.53038062,1992.2,1990.9,13.81899397]
[1770994451128,14.53038062,1992.7,1990.9,13.81899397]
[1770994451327,14.53038062,1992.5,1990.9,13.81899397]
[1770994451525,14.53038062,1992.1,1990.9,13.81899397]
[1770994452133,14.53038062,1992.5,1991.1,13.81899397]
[1770994452330,19.23869564,1992.4,1991.1,13.81899397]
[1770994452527,14.53038062,1992.4,1991.1,13.81899397]
[1770994452830,14.42,1992.6,1991.1,13.81899397]
[1770994453019,14.53038062,1992.6,1991.1,13.81899397]
[1770994453423,14.53038062,1992.4,1991.1,13.81899397]
[1770994453625,14.53038062,1992.2,1991.1,13.81899397]
[1770994454421,14.53038062,1992.0,1991.1,13.81899397]
[1770994455030,14.53038062,1991.8,1990.6,13.81899397]
[1770994455526,14.53038062,1991.6,1990.6,13.81899397]
[1770994455726,4.72897738,1991.5,1990.6,13.81899397]
[1770994455927,19.259358,1991.5,1990.6,13.81899397]
[1770994456128,14.53038062,1991.5,1990.6,13.81899397]
[1770994456429,14.53038062,1991.3,1990.6,0.00357219]
[1770994457222,14.53038062,1991.1,1990.6,0.00357219]
[1770994457530,14.53038062,1991.1,1990.3,13.81899397]
[1770994457731,4.73317056,1991.0,1990.0,13.81899397]
[1770994457930,14.53038062,1991.0,1990.0,13.81899397]
[1770994458232,17.491739,1991.0,1990.0,13.81899397]
[1770994458433,14.53038062,1990.8,1990.0,0.0037925]
[1770994458732,14.53038062,1990.8,1989.4,13.81899397]
[1770994458733,17.491739,1990.6,1989.4,13.81899397]
[1770994459030,4.73441089,1990.5,1989.4,13.81899397]
[1770994459226,19.26479151,1990.5,1989.4,13.81899397]
[1770994459426,19.26383423,1990.4,1989.4,13.81899397]
[1770994459626,14.53038062,1990.2,1989.4,0.00638109]
[1770994459823,19.26413417,1990.1,1989.4,13.82537506]
[1770994460031,0.00637817,1990.1,1989.4,13.82537506]
[1770994460227,0.00637817,1990.1,1989.4,0.00638109]
[1770994460228,14.53675879,1990.1,1989.4,0.00638109]
[1770994460827,0.00637817,1990.1,1989.4,13.82537506]
[1770994461633,72.86046755,1990.7,1989.4,13.82537506]
[1770994461634,31.951739,1990.7,1989.4,13.82537506]
[1770994461835,28.99038062,1990.7,1989.4,13.82537506]
[1770994462327,17.491739,1991.3,1989.8,13.81899397]
[1770994462530,0.00544121,1991.3,1990.4,13.81899397]
[1770994463033,14.53582183,1991.3,1990.4,13.81899397]
[1770994463228,0.00544121,1991.3,1990.4,13.81899397]
[1770994464141,14.53582183,1991.3,1990.4,13.81899397]
[1770994464341,14.53038062,1991.1,1989.9,13.81899397]
[1770994464632,14.53038062,1990.9,1989.9,13.81899397]
[1770994465037,17.491739,1991.1,1989.9,13.81899397]
[1770994465237,14.53038062,1990.9,1989.9,13.81899397]
[1770994465935,17.491739,1991.2,1989.9,13.81899397]
[1770994466134,4.72023709,1991.1,1989.9,13.81899397]
[1770994466430,0.00544121,1991.3,1990.5,13.81899397]
[1770994466632,14.53038062,1991.7,1990.3,13.81899397]
[1770994466934,4.71975698,1991.6,1990.5,13.81899397]
[1770994467133,31.991739,1991.8,1990.5,13.81899397]
[1770994467134,14.78161062,1991.5,1990.5,13.81899397]
[1770994467331,14.53038062,1991.1,1990.0,13.81899397]
[1770994467526,14.53038062,1990.9,1990.0,13.81899397]
[1770994467728,14.53038062,1990.9,1989.7,13.81899397]
[1770994467928,14.53038062,1990.7,1989.7,13.81899397]
[1770994468128,17.491739,1991.0,1989.7,13.81899397]
[1770994468339,4.72056474,1990.9,1989.7,13.81899397]
[1770994468535,17.491739,1991.0,1989.7,13.81899397]
[1770994468833,4.71946049,1990.9,1989.7,13.81899397]
[1770994469034,2.96135838,1992.0,1990.7,13.81899397]
[1770994469450,43.87008693,1992.1,1991.0,6.18175]
[1770994469732,17.491739,1992.6,1991.3,13.81899397]
[1770994469932,14.53038062,1992.4,1991.3,13.82414914]
[1770994470136,19.24421287,1992.3,1991.3,13.82414914]
[1770994470339,0.2511,1992.5,1991.3,13.82414914]
[1770994470540,4.71349284,1992.4,1991.3,13.82414914]
[1770994470844,4.71353803,1992.3,1991.3,13.82414914]
[1770994471043,15.0881075,1992.6,1991.3,14.07538914]
[1770994471344,0.00420774,1992.6,1991.3,14.07538914]
[1770994471542,0.00420774,1992.6,1991.8,13.63857437]
[1770994473044,15.08389976,1993.2,1991.8,13.63857437]
[1770994473246,15.08389976,1993.0,1991.8,13.63857437]
[1770994473642,15.08389976,1992.8,1991.8,13.63857437]
[1770994473845,14.626,1993.0,1991.8,13.63857437]
[1770994474040,4.70629244,1992.9,1991.8,13.63857437]
[1770994474245,15.08389976,1992.9,1991.8,13.63857437]
[1770994474438,0.0061969,1993.0,1991.8,13.63857437]
[1770994475141,15.08389976,1992.8,1991.8,13.63857437]
[1770994475744,15.08389976,1992.8,1991.4,13.63857437]
[1770994475947,15.08389976,1992.6,1991.4,13.63857437]
[1770994476345,15.08389976,1992.9,1991.4,13.88980437]
[1770994476649,13.8096305,1992.7,1991.4,13.63857437]
[1770994476848,13.8096305,1992.5,1991.4,13.63857437]
[1770994477049,13.8096305,1992.3,1991.3,0.00515517]
[1770994477441,13.8096305,1992.3,1991.3,14.39798429]
[1770994477846,13.8096305,1992.6,1991.3,14.39798429]
[1770994478045,13.8096305,1992.4,1991.3,14.39798429]
[1770994478950,13.8096305,1992.4,1991.3,0.00515517]
[1770994478951,13.8096305,1992.2,1991.3,0.00515517]
[1770994479150,13.8096305,1992.0,1991.3,0.00515517]
[1770994480152,13.8096305,1991.8,1990.8,14.39282912]
[1770994480948,13.8096305,1991.6,1990.5,14.39282912]
[1770994481146,13.81345535,1991.6,1990.5,14.39804444]
[1770994481555,13.8096305,1991.4,1990.5,0.00521532]
[1770994481845,13.8096305,1991.4,1990.5,14.39804444]
[1770994482045,14.643,1991.5,1990.5,14.39804444]
[1770994482245,0.00382485,1991.6,1990.5,14.39804444]
[1770994482755,13.81345535,1991.6,1990.5,14.39804444]
[1770994483361,13.8096305,1991.2,1990.5,0.00521532]
[1770994484263,13.8096305,1990.9,1989.6,14.39282912]
[1770994484459,0.25129,1991.0,1989.6,14.39282912]
[1770994484460,13.8096305,1990.7,1989.6,14.39282912]
[1770994484663,13.8096305,1990.5,1989.6,14.39282912]
[1770994484857,13.8096305,1990.5,1989.2,14.39282912]
[1770994485052,13.8096305,1990.3,1989.2,14.39282912]
[1770994485254,13.8096305,1990.2,1989.2,14.39907355]
[1770994485764,0.00424302,1990.2,1989.2,14.39907355]
[1770994486467,13.81387352,1990.2,1989.2,14.39907355]
[1770994487360,13.8096305,1990.0,1989.2,0.00624443]
[1770994488255,13.81387352,1990.2,1989.2,14.39907355]
[1770994488962,0.00424302,1990.2,1989.2,14.39907355]
[1770994489460,13.81387352,1990.2,1989.2,14.39907355]
[1770994490060,13.81387352,1990.2,1989.2,0.00624443]
[1770994490760,13.81387352,1990.2,1989.2,14.39907355]
[1770994491059,0.00424302,1990.2,1989.2,14.39907355]
[1770994492363,13.81387352,1990.2,1989.2,14.39907355]
[1770994493257,0.00424302,1990.2,1989.2,14.39907355]
[1770994493656,13.81387352,1990.2,1989.2,14.39907355]
[1770994495258,0.00424302,1990.2,1989.2,14.39907355]
[1770994495567,13.81387352,1990.2,1989.2,0.00624443]
[1770994495769,13.81387352,1990.2,1989.2,14.39907355]
[1770994497166,0.00424302,1990.2,1989.2,14.39907355]
[1770994498066,0.00424302,1990.2,1989.4,14.39282912]
[1770994499762,13.81387352,1990.2,1989.4,14.39282912]
[1770994500470,0.00424302,1990.2,1989.4,14.39282912]
[1770994500663,0.00424302,1990.2,1989.5,0.25148]
[1770994500861,13.67574292,1991.1,1989.8,14.02400274]
[1770994501064,13.67574292,1991.3,1990.0,14.02400274]
[1770994501261,13.92700292,1991.3,1990.0,14.02400274]
[1770994501560,13.92693292,1991.8,1990.4,14.02400274]
[1770994501760,13.93087361,1991.8,1990.4,14.02400274]
[1770994502364,13.67574292,1991.3,1990.1,14.02400274]
[1770994502668,13.67574292,1991.4,1990.1,14.02400274]
[1770994503065,0.25131,1990.9,1990.1,14.02400274]
[1770994503266,13.67574292,1991.1,1989.6,14.27546274]
[1770994503771,13.67574292,1991.4,1989.9,14.02400274]
[1770994504075,13.67574292,1991.6,1990.3,14.02400274]
[1770994504374,0.00394069,1991.8,1990.5,14.02400274]
[1770994504570,13.67968361,1991.8,1990.7,14.02400274]
[1770994504872,13.67968361,1991.8,1990.7,14.03053072]
[1770994505268,0.00394069,1991.8,1990.7,14.03053072]
[1770994505462,13.67968361,1991.8,1990.7,14.03053072]
[1770994505873,13.67574292,1991.2,1989.6,14.02400274]
[1770994506169,6.18092,1991.3,1989.6,14.02400274]
[1770994506170,13.67574292,1991.3,1989.6,14.02400274]
[1770994506376,13.67574292,1991.3,1990.0,14.02400274]
[1770994506778,13.67574292,1991.1,1990.0,14.02900069]
[1770994506977,13.67574292,1990.9,1990.0,14.02900069]
[1770994507472,13.67574292,1991.4,1990.0,14.02900069]
[1770994507674,13.67574292,1991.2,1990.0,14.02900069]
[1770994507873,13.92697292,1991.5,1990.0,14.02900069]
[1770994508070,18.39087056,1991.4,1990.0,14.02900069]
[1770994508271,4.71901671,1991.3,1990.0,14.02900069]
[1770994508576,13.67574292,1991.4,1990.0,14.02900069]
[1770994508776,18.39477155,1991.3,1990.0,14.02900069]
[1770994508976,13.67574292,1991.3,1990.0,14.02900069]
[1770994509177,0.00394069,1991.8,1990.5,6.18322]
[1770994509471,0.00394069,1991.8,1990.8,14.02400274]
[1770994509875,13.67968361,1991.8,1990.8,14.02400274]
[1770994510173,0.00394069,1991.8,1990.8,14.02400274]
[1770994510476,13.67574292,1992.4,1990.8,14.02400274]
[1770994510771,13.67574292,1992.4,1991.0,14.02044761]
[1770994510977,5.97227255,1992.9,1991.0,14.02044761]
[1770994510978,13.67574292,1993.0,1991.7,14.02400274]
[1770994511181,2.96135838,1993.7,1992.1,14.02400274]
[1770994511374,16.6371013,1994.3,1992.9,14.02400274]
[1770994511571,13.67574292,1994.5,1993.1,14.02400274]
[1770994511878,13.67574292,1994.1,1993.1,14.02400274]
[1770994512371,13.67574292,1993.9,1992.8,14.02400274]
[1770994512577,13.67574292,1993.6,1992.3,14.02400274]
[1770994512968,16.65302474,1993.9,1992.3,14.02400274]
[1770994513274,0.00577443,1994.1,1992.9,14.02400274]
[1770994513476,13.67574292,1994.7,1992.9,14.02400274]
[1770994513673,13.67574292,1994.7,1993.1,14.02400274]
[1770994514579,13.68135141,1994.7,1993.3,14.02400274]
[1770994515074,0.00560849,1994.7,1993.5,14.02400274]
[1770994515270,0.00560849,1994.7,1993.5,14.03004644]
[1770994515467,0.00560849,1994.7,1993.7,14.02400274]
[1770994515973,0.00560849,1994.7,1993.7,21.74400274]
[1770994516172,13.68135141,1994.7,1993.8,14.02400274]
[1770994516473,0.00560849,1994.7,1993.8,14.02400274]
[1770994517274,0.00560849,1994.7,1992.7,14.02400274]
[1770994517275,13.67574292,1994.2,1992.7,14.02400274]
[1770994517578,13.67574292,1993.9,1992.7,14.02400274]
[1770994517774,13.67574292,1993.7,1992.7,14.02400274]
[1770994518280,13.67574292,1993.7,1992.7,14.02992953]
[1770994518580,13.67574292,1994.2,1992.7,14.02992953]
[1770994518966,13.67574292,1994.6,1992.7,14.02992953]
[1770994519177,13.67574292,1994.6,1992.9,14.02400274]
[1770994519376,13.67574292,1994.6,1992.9,21.75800274]
[1770994519576,13.67574292,1994.6,1993.0,14.02400274]
[1770994520076,13.67574292,1994.0,1993.0,14.02400274]
[1770994520279,13.67574292,1993.6,1992.7,0.00592679]
[1770994520776,13.67574292,1993.6,1992.7,14.02992953]
[1770994521376,13.67574292,1993.9,1992.7,14.02992953]
[1770994524683,13.92667292,1993.9,1992.7,0.00592679]
[1770994524876,13.67574292,1993.9,1992.7,14.02992953]
[1770994528778,13.67574292,1993.7,1992.7,14.02992953]
[1770994528983,13.67574292,1993.7,1992.7,0.00592679]
[1770994529381,13.67574292,1993.7,1992.7,14.02992953]
[1770994529778,13.67574292,1993.7,1992.7,0.00592679]
[1770994530482,13.67574292,1993.5,1992.1,14.02400274]
[1770994530687,13.62310771,1993.1,1992.1,14.02400274]
[1770994530876,13.62310771,1993.1,1991.8,13.45600024]
[1770994531584,13.62717281,1993.1,1991.8,13.45984202]
[1770994532091,0.0040651,1993.1,1991.8,13.45984202]
[1770994532477,0.0040651,1993.1,1992.0,13.45600024]
[1770994532681,13.62717281,1993.1,1992.0,13.45600024]
[1770994533281,0.0040651,1993.1,1992.2,13.45600024]
[1770994533778,13.62310771,1993.6,1992.3,13.45600024]
[1770994534088,13.62310771,1993.7,1992.3,13.45600024]
[1770994534682,13.62310771,1993.5,1992.3,13.45600024]
[1770994534886,13.62897954,1993.7,1992.3,13.45600024]
[1770994535281,0.00587183,1993.7,1992.5,13.45600024]
[1770994535685,0.00587183,1993.7,1992.7,13.45600024]
[1770994535882,0.00587183,1993.7,1992.8,13.45600024]
[1770994536484,0.00587183,1993.7,1991.9,14.11881781]
[1770994536485,13.66964453,1993.7,1991.9,14.11881781]
[1770994536685,13.6637727,1993.5,1992.3,14.11881781]
[1770994537290,13.66964453,1993.7,1992.3,14.11881781]
[1770994537494,13.66964453,1993.7,1992.5,14.11881781]
[1770994538492,13.92060453,1993.7,1992.2,7.738]
[1770994538787,13.6637727,1993.5,1992.3,14.11881781]
[1770994538991,13.6637727,1993.3,1992.4,7.737]
[1770994539188,13.6637727,1993.3,1992.4,21.85581781]
[1770994539386,13.6637727,1993.1,1992.3,14.11881781]
[1770994539583,13.6637727,1993.6,1992.3,14.11881781]
[1770994539791,13.6637727,1993.0,1992.1,14.11881781]
[1770994539998,13.6637727,1993.0,1991.9,21.85881781]
[1770994540188,13.6637727,1992.8,1991.9,21.86081781]
[1770994540589,13.6637727,1992.8,1991.9,21.85981781]
[1770994540994,13.6637727,1993.1,1992.0,14.11881781]
[1770994541494,13.6637727,1992.9,1992.1,7.741]
[1770994541694,13.6637727,1992.9,1992.1,21.85981781]
[1770994542091,13.6637727,1992.9,1991.8,0.00384178]
[1770994542289,13.6637727,1992.7,1991.8,14.12265959]
[1770994542594,13.9148327,1992.8,1991.8,14.12265959]
[1770994542791,13.6637727,1992.8,1991.9,7.741]
[1770994542992,13.6637727,1992.8,1992.0,14.11881781]
[1770994543591,13.6637727,1993.1,1992.0,14.11881781]
[1770994543895,13.6637727,1993.1,1992.2,14.11881781]
[1770994544196,2.97728182,1993.4,1991.8,0.25502178]
[1770994544197,13.6637727,1993.4,1992.4,14.11881781]
[1770994544390,13.6637727,1993.2,1992.4,14.11881781]
[1770994544786,13.6637727,1993.0,1991.9,14.11881781]
[1770994544997,13.6637727,1993.0,1992.1,14.11881781]
[1770994545290,4.7162955,1992.9,1992.0,14.11881781]
[1770994545492,13.6637727,1992.9,1992.0,14.11881781]
[1770994545686,13.6637727,1992.9,1991.8,0.00384178]
[1770994545894,13.6637727,1992.7,1991.8,21.86465959]
[1770994546195,13.6637727,1992.5,1991.8,0.00384178]
[1770994546391,2.97728182,1992.8,1991.8,14.12265959]
[1770994546697,13.6637727,1992.6,1991.8,0.00384178]
[1770994547000,13.6637727,1992.4,1991.8,0.00384178]
[1770994547197,16.64105452,1992.7,1991.8,14.12265959]
[1770994547496,18.34430721,1992.6,1991.8,14.12265959]
[1770994547698,16.64105452,1992.9,1991.8,14.12265959]
[1770994547998,13.6637727,1992.7,1991.8,0.00384178]
[1770994548193,13.6637727,1992.5,1991.8,0.00384178]
[1770994548393,13.6637727,1992.5,1991.8,21.87065959]
[1770994548594,2.97728182,1992.9,1991.9,14.11881781]
[1770994548794,18.32050158,1992.8,1991.9,14.11881781]
[1770994548995,4.65656532,1992.7,1991.9,14.11881781]
[1770994549188,13.6637727,1992.8,1992.0,7.751]
[1770994549392,4.65814887,1992.7,1992.0,7.751]
[1770994549592,13.6637727,1992.8,1992.0,7.751]
[1770994549794,13.6637727,1992.8,1991.9,14.11881781]
[1770994549993,4.65808795,1992.7,1992.0,7.755]
[1770994550199,13.6637727,1992.8,1992.0,7.755]
[1770994550501,18.32216409,1992.7,1992.1,7.756]
[1770994550799,13.6637727,1993.2,1992.2,14.11881781]
[1770994550993,16.64105452,1993.4,1992.2,14.11881781]
[1770994551197,4.65747141,1993.3,1992.2,14.36994781]
[1770994551402,16.64105452,1993.5,1992.2,14.36994781]
[1770994551597,18.32126253,1993.4,1992.2,14.36994781]
[1770994551902,18.32126253,1993.3,1992.4,14.11881781]
[1770994552090,13.6637727,1993.3,1992.4,14.11881781]
[1770994552596,13.6637727,1993.1,1992.5,7.766]
[1770994552902,13.6637727,1993.1,1992.2,14.11881781]
[1770994553100,13.6637727,1993.1,1992.3,21.88481781]
[1770994553301,13.6637727,1993.4,1992.4,14.11881781]
[1770994553500,13.6637727,1993.2,1992.5,7.769]
[1770994554201,13.6637727,1993.2,1992.5,21.88781781]
[1770994554402,13.6637727,1993.2,1992.4,7.774]
[1770994554593,13.6637727,1993.2,1991.9,14.11881781]
[1770994554797,0.25105,1992.9,1991.8,0.00384178]
[1770994554998,13.6637727,1992.7,1991.8,14.12265959]
[1770994555301,13.6637727,1992.7,1990.9,6.18202]
[1770994555302,13.6637727,1992.5,1991.5,14.11881781]
[1770994555496,13.6637727,1992.3,1991.5,14.11881781]
[1770994556104,13.66781561,1992.3,1991.5,0.00552241]
[1770994556600,13.6637727,1992.1,1991.5,0.00552241]
[1770994556795,13.6637727,1992.1,1991.5,14.12434022]
[1770994556995,13.6637727,1992.1,1991.5,0.00552241]
[1770994557397,0.00404291,1992.3,1990.9,14.11881781]
[1770994557398,13.6637727,1991.9,1990.9,14.11881781]
[1770994557611,13.6637727,1991.7,1990.9,7.783]
[1770994557798,13.6637727,1992.0,1991.0,14.11881781]
[1770994558200,13.66781561,1992.3,1991.2,14.11881781]
[1770994558701,13.66781561,1992.3,1991.2,14.37551247]
[1770994558904,0.00404291,1992.3,1991.2,14.37551247]
[1770994559407,13.66781561,1992.3,1991.3,14.11881781]
[1770994559605,13.66781561,1992.3,1991.2,7.79744466]
[1770994559806,13.6637727,1992.1,1991.2,0.00544466]
[1770994560102,13.6637727,1992.1,1991.2,21.91626247]
[1770994560302,0.00404291,1992.3,1991.3,14.11881781]
[1770994560603,0.00404291,1992.3,1991.5,14.11881781]
[1770994560812,16.61169532,1993.0,1991.9,13.69639896]
[1770994560998,5.97227255,1993.3,1992.1,13.69639896]
[1770994560999,13.6344135,1993.3,1992.1,13.69639896]
[1770994561204,13.6344135,1993.1,1992.2,7.797]
[1770994561402,13.6344135,1993.1,1992.3,7.797]
[1770994561706,3.22827182,1993.4,1992.1,7.798]
[1770994561707,13.6344135,1992.9,1992.1,7.798]
[1770994561901,13.6385079,1992.9,1992.1,13.69639896]
[1770994562304,13.6344135,1992.7,1992.0,13.69639896]
[1770994562706,0.0040944,1992.9,1992.1,13.69639896]
[1770994562902,13.6385079,1992.9,1992.1,13.69639896]
[1770994563098,13.6344135,1992.7,1991.8,7.804]
[1770994563299,13.6344135,1992.7,1991.9,13.69639896]
[1770994563510,13.8854935,1992.7,1991.7,7.805]
[1770994563812,13.8855335,1992.3,1991.2,0.00544466]
[1770994564008,13.6344135,1992.1,1991.2,0.00544466]
[1770994564313,4.65589078,1992.2,1990.7,13.69639896]
[1770994564314,13.6344135,1991.9,1990.7,13.69639896]
[1770994564805,13.6344135,1991.9,1990.8,7.808]
[1770994565107,13.6344135,1992.2,1990.5,13.94774896]
[1770994565305,13.6344135,1992.0,1990.6,13.69639896]
[1770994565505,13.6344135,1991.8,1990.5,0.00587508]
[1770994565709,13.6344135,1991.6,1990.5,21.51227404]
[1770994565902,13.6344135,1991.6,1990.6,13.69639896]
[1770994566103,13.6344135,1991.9,1990.6,13.69639896]
[1770994566611,31.74008142,1992.7,1990.6,13.69639896]
[1770994566612,13.6344135,1992.5,1991.2,13.69639896]
[1770994566913,13.6344135,1992.3,1991.4,13.69639896]